fUST/lending_fUST_20240822
["ID","MTS","AMOUNT","RATE_DAILY","PERIOD"]
[335477698,1724259040196,-191.34123187,0.00025,2]
[335477709,1724259040398,-369.96805713,0.00025,30]
[335477710,1724259040416,-199.0,0.00025,2]
[335477712,1724259040427,-165.0,0.00025,2]
[335477713,1724259040436,-500.0,0.00025038,2]
[335477715,1724259040447,-1500.0,0.00025183,2]
[335477716,1724259040457,-3000.0,0.00025188,2]
[335477717,1724259040467,-3963.05,0.000252,14]
[335477718,1724259040477,-465.00000001,0.00025206,2]
[335477719,1724259040488,-700.0,0.00025222,2]
[335477720,1724259040498,-700.0,0.00025462,2]
[335477721,1724259040508,-500.0,0.00025554,2]
[335477722,1724259040519,-700.0,0.00025712,2]
[335477723,1724259040529,-700.0,0.00025775,2]
[335477724,1724259040538,-500.0,0.00025824,2]
[335477725,1724259040549,-402.0,0.00025881,2]
[335477726,1724259040561,-165.0,0.0002589,2]
[335477727,1724259040572,-382.82,0.000259,7]
[335477728,1724259040583,-1500.0,0.00025989,2]
[335477729,1724259040595,-150.112233,0.00026,7]
[335477730,1724259040606,-150.0,0.0002615,2]
[335477731,1724259040617,-151.0,0.00026305,7]
[335477732,1724259040627,-151.0,0.00026305,7]
[335477733,1724259040638,-151.0,0.00026305,7]
[335477734,1724259040659,-151.0,0.00026305,7]
[335477735,1724259040670,-151.0,0.00026305,7]
[335477736,1724259040679,-151.0,0.00026305,7]
[335477737,1724259040689,-151.0,0.00026305,7]
[335477738,1724259040699,-198.659333,0.00026316,7]
[335477739,1724259040710,-151.0,0.00026316,7]
[335477740,1724259040720,-151.0,0.00026316,7]
[335477741,1724259040732,-153.316594,0.00026316,7]
[335477742,1724259040743,-151.0,0.00026316,7]
[335477743,1724259040753,-151.0,0.00026316,7]
[335477744,1724259040763,-151.0,0.00026316,7]
[335477745,1724259040775,-151.0,0.00026316,7]
[335477746,1724259040785,-151.0,0.00026316,7]
[335477747,1724259040794,-151.0,0.00026316,7]
[335477748,1724259040804,-151.0,0.00026316,7]
[335477749,1724259040813,-151.0,0.00026316,7]
[335477751,1724259040823,-647.964,0.00026316,7]
[335477753,1724259040833,-647.964,0.00026316,7]
[335477754,1724259040843,-1300.0,0.00026326,2]
[335477755,1724259040852,-700.0,0.00026396,2]
[335477757,1724259040862,-5142.87603245,0.00026445,2]
[335477759,1724259040872,-465.0,0.00026466,2]
[335477761,1724259040883,-151.0,0.00026543,7]
[335477763,1724259040896,-300.0241823,0.00026698,2]
[335477765,1724259040916,-300.0,0.00026705,2]
[335477767,1724259040926,-402.0,0.00026887,2]
[335477768,1724259040937,-723.02,0.000269,14]
[335477770,1724259040947,-1500.0,0.00026903,2]
[335477772,1724259040957,-1500.0,0.00026952,2]
[335477774,1724259040967,-500.0,0.00027118,2]
[335477775,1724259040977,-500.0,0.00027125,2]
[335477777,1724259040988,-163.397038,0.00027167,2]
[335477779,1724259040997,-500.0,0.00027169,2]
[335477781,1724259041007,-151.0,0.00027181,7]
[335477782,1724259041016,-151.0,0.00027181,7]
[335477783,1724259041025,-151.0,0.00027181,7]
[335477784,1724259041034,-500.0,0.00027287,2]
[335477785,1724259041044,-151.0,0.00027397,7]
[335477786,1724259041053,-933.95747527,0.00027397,2]
[335477787,1724259041062,-151.0,0.00027397,7]
[335477788,1724259041072,-151.0,0.00027397,7]
[335477789,1724259041083,-500.0,0.00027444,2]
[335477790,1724259041092,-1500.0,0.0002747,2]
[335477791,1724259041103,-700.0,0.00027508,2]
[335477792,1724259041113,-700.0,0.00027579,2]
[335477793,1724259041123,-150.112233,0.000276,9]
[335477794,1724259041132,-3963.05,0.000276,14]
[335477795,1724259041143,-1500.0,0.00027761,2]
[335477796,1724259041152,-500.0,0.00027839,2]
[335477797,1724259041162,-402.0,0.00027892,2]
[335477798,1724259041172,-4384.41673856,0.00027913,2]
[335477799,1724259041185,-151.0,0.00027913,7]
[335477800,1724259041194,-151.0,0.00027913,7]
[335477801,1724259041204,-1480.28757557,0.00027945,120]
[335477802,1724259041213,-369.21673832,0.00028,30]
[335477803,1724259041225,-500.0,0.00028219,2]
[335477804,1724259041234,-382.82,0.000283,7]
[335477805,1724259041244,-159.786856,0.0002831,2]
[335477806,1724259041255,-1500.0,0.00028392,2]
[335477807,1724259041265,-313.6271849,0.00028493,2]
[335477808,1724259041274,-688.29452569,0.00028493,2]
[335477809,1724259041284,-151.0,0.00028606,7]
[335477810,1724259041294,-151.0,0.00028606,7]
[335477811,1724259041304,-151.0,0.00028606,7]
[335477812,1724259041314,-151.0,0.00028606,7]
[335477813,1724259041323,-151.0,0.00028606,7]
[335477814,1724259041333,-180.570652,0.00028606,7]
[335477815,1724259041342,-700.0,0.00028615,2]
[335477816,1724259041352,-500.0,0.00028897,2]
[335477817,1724259041361,-402.0,0.00028898,2]
[335477818,1724259041371,-1300.0,0.00028908,2]
[335477819,1724259041380,-1300.0,0.00028967,2]
[335477820,1724259041391,-500.0,0.00028992,2]
[335477821,1724259041415,-1000.0,0.00029,29]
[335477822,1724259041425,-150.112233,0.000292,9]
[335477823,1724259041435,-1300.0,0.00029252,2]
[335477824,1724259041447,-500.0,0.00029344,2]
[335477825,1724259041457,-1500.0,0.00029392,2]
[335477826,1724259041478,-161.666967,0.000295,10]
[335477827,1724259041489,-700.0,0.00029545,2]
[335477828,1724259041499,-500.0,0.00029552,2]
[335477829,1724259041510,-172.607005,0.00029589,2]
[335477830,1724259041521,-221482.4281,0.00029642,2]
[335477831,1724259041532,-1500.0,0.00029643,2]
[335477832,1724259041543,-5142.87603245,0.00029718,2]
[335477833,1724259041554,-499.3,0.0002986,2]
[335477834,1724259041564,-402.0,0.00029903,2]
[335477835,1724259041573,-1300.0,0.00029957,2]
[335477836,1724259041583,-285.3614456,0.0003,3]
[335477837,1724259041594,-178.72751622,0.0003,5]
[335477838,1724259041607,-660.32582902,0.0003,2]
[335477839,1724259041618,-154.481647,0.0003,7]
[335477840,1724259041629,-151.0,0.0003,7]
[335477841,1724259041640,-604.59709647,0.0003,2]
[335477842,1724259041660,-700.0,0.00030088,7]
[335477843,1724259041669,-500.0,0.00030345,7]
[335477844,1724259041680,-1500.0,0.00030371,7]
[335477845,1724259041691,-153.0,0.00030497,2]
[335477846,1724259041703,-153.0,0.00030497,2]
[335477847,1724259041714,-153.0,0.00030497,2]
[335477848,1724259041724,-153.0,0.00030497,2]
[335477849,1724259041734,-153.0,0.00030497,2]
[335477850,1724259041745,-153.0,0.00030497,2]
[335477851,1724259041754,-153.0,0.00030497,2]
[335477852,1724259041763,-153.0,0.00030497,2]
[335477853,1724259041773,-153.0,0.00030497,2]
[335477854,1724259041783,-153.0,0.00030497,2]
[335477855,1724259041793,-153.0,0.00030497,2]
[335477856,1724259041803,-153.0,0.00030497,2]
[335477857,1724259041813,-153.0,0.00030497,2]
[335477858,1724259041822,-153.0,0.00030497,2]
[335477859,1724259041833,-153.0,0.00030497,2]
[335477860,1724259041842,-153.0,0.00030497,2]
[335477861,1724259041853,-153.0,0.00030497,2]
[335477862,1724259041863,-153.0,0.00030497,2]
[335477863,1724259041873,-153.0,0.00030497,2]
[335477864,1724259041883,-153.0,0.00030497,2]
[335477865,1724259041898,-153.0,0.00030497,2]
[335477866,1724259041913,-153.0,0.00030497,2]
[335477867,1724259041922,-153.0,0.00030497,2]
[335477868,1724259041932,-153.0,0.00030497,2]
[335477869,1724259041943,-153.0,0.00030497,2]
[335477870,1724259041954,-153.0,0.00030497,2]
[335477871,1724259041966,-153.0,0.00030497,2]
[335477872,1724259041977,-153.0,0.00030497,2]
[335477873,1724259041989,-153.0,0.00030497,2]
[335477874,1724259041998,-153.0,0.0003052,2]
[335477875,1724259042009,-153.0,0.0003052,2]
[335477876,1724259042020,-153.0,0.0003052,2]
[335477877,1724259042031,-153.0,0.0003052,2]
[335477878,1724259042040,-153.0,0.0003052,2]
[335477879,1724259042049,-153.0,0.0003052,2]
[335477880,1724259042060,-153.0,0.0003052,2]
[335477881,1724259042071,-153.0,0.0003052,2]
[335477882,1724259042082,-153.0,0.0003052,2]
[335477883,1724259042096,-153.0,0.0003052,2]
[335477884,1724259042106,-153.0,0.0003052,2]
[335477885,1724259042117,-153.0,0.0003052,2]
[335477886,1724259042127,-153.0,0.0003052,2]
[335477887,1724259042138,-153.0,0.0003052,2]
[335477888,1724259042153,-153.0,0.0003052,2]
[335477889,1724259042166,-153.0,0.0003052,2]
[335477890,1724259042180,-153.0,0.0003052,2]
[335477891,1724259042190,-153.0,0.0003052,2]
[335477892,1724259042202,-153.0,0.0003052,2]
[335477893,1724259042215,-153.0,0.0003052,2]
[335477894,1724259042225,-153.0,0.0003052,2]
[335477895,1724259042235,-153.0,0.0003052,2]
[335477896,1724259042244,-150.112233,0.000306,5]
[335477897,1724259042259,-1300.0,0.00030641,7]
[335477898,1724259042269,-501.99527765,0.00030796,7]
[335477899,1724259042278,-150.112233,0.000308,9]
[335477900,1724259042289,-402.0,0.00030909,3]
[335477901,1724259042299,-2875.58447514,0.00031,120]
[335477902,1724259042310,-150.112233,0.00031,9]
[335477903,1724259042321,-1000.0,0.00031,31]
[335477904,1724259042331,-588.73015469,0.00031,120]
[335477905,1724259042342,-43283.68593448,0.00031,120]
[335477906,1724259042352,-151.0,0.00031,7]
[335477907,1724259042362,-151.0,0.00031,7]
[335477908,1724259042373,-151.0,0.00031,7]
[335477909,1724259042383,-647.964,0.00031,7]
[335477910,1724259042393,-647.964,0.00031,7]
[335477911,1724259042406,-151.0,0.00031,7]
[335477912,1724259042416,-151.0,0.00031,7]
[335477913,1724259042427,-151.0,0.00031,7]
[335477914,1724259042436,-151.0,0.00031,7]
[335477915,1724259042446,-151.0,0.00031,7]
[335477916,1724259042459,-151.0,0.00031,7]
[335477917,1724259042470,-151.0,0.00031,7]
[335477918,1724259042482,-1500.0,0.00031116,7]
[335477919,1724259042493,-1300.0,0.00031209,7]
[335477920,1724259042503,-500.0,0.00031367,7]
[335477921,1724259042513,-4384.41673856,0.00031406,2]
[335477922,1724259042523,-151.0,0.00031615,7]
[335477923,1724259042534,-151.0,0.00031615,7]
[335477924,1724259042550,-1300.0,0.00031689,7]
[335477925,1724259042561,-356.591051,0.00031781,2]
[335477926,1724259042570,-151.0,0.0003187,7]
[335477927,1724259042580,-151.0,0.0003187,7]
[335477928,1724259042591,-151.0,0.0003187,7]
[335477929,1724259042601,-151.0,0.0003187,7]
[335477930,1724259042611,-151.0,0.0003187,7]
[335477931,1724259042622,-151.0,0.0003187,7]
[335477932,1724259042632,-151.0,0.0003187,7]
[335477933,1724259042644,-5188.63792178,0.00031874,2]
[335477934,1724259042654,-402.0,0.00031914,3]
[335477935,1724259042665,-450.0,0.00032,14]
[335477936,1724259042675,-1000.0,0.00032,32]
[335477937,1724259042686,-5188.63792178,0.00032067,2]
[335477938,1724259042696,-1300.0,0.00032128,7]
[335477939,1724259042706,-409.0504316,0.0003216,2]
[335477940,1724259042718,-409.0504316,0.0003216,2]
[335477941,1724259042730,-150.112233,0.000323,7]
[335477942,1724259042740,-500.0,0.00032308,7]
[335477943,1724259042750,-151.0,0.00032366,7]
[335477944,1724259042761,-150.112233,0.000324,7]
[335477945,1724259042772,-151.0,0.000324,7]
[335477946,1724259042783,-151.0,0.000324,7]
[335477947,1724259042794,-151.0,0.000324,7]
[335477948,1724259042803,-151.0,0.000324,7]
[335477949,1724259042814,-150.112233,0.000325,6]
[335477950,1724259042824,-5160.31,0.000325,120]
[335477951,1724259042834,-5160.31,0.000325,120]
[335477952,1724259042845,-5160.31,0.000325,120]
[335477953,1724259042856,-5160.31,0.000325,120]
[335477954,1724259042868,-5160.31,0.000325,120]
[335477955,1724259042880,-5188.63792178,0.00032517,2]
[335477956,1724259042890,-500.0,0.00032575,7]
[335477959,1724259042902,-1500.0,0.00032691,7]
[335477960,1724259042914,-150.0,0.00032699,2]
[335477961,1724259042925,-700.0,0.00032701,7]
[335477962,1724259042935,-700.0,0.00032761,7]
[335477964,1724259042945,-243.0811,0.0003282,2]
[335477966,1724259042955,-5188.6379218,0.0003282,2]
[335477967,1724259042966,-409.0504316,0.00032862,2]
[335477968,1724259042976,-409.0504316,0.00032862,2]
[335477969,1724259042988,-409.0504316,0.00032862,2]
[335477970,1724259042998,-409.0504316,0.00032862,2]
[335477971,1724259043011,-1000.0,0.00032876,2]
[335477972,1724259043022,-5712.62,0.00032876,21]
[335477973,1724259043033,-402.0,0.0003292,4]
[335477974,1724259043044,-5712.62,0.00032931,21]
[335477976,1724259043054,-153.0,0.00032932,2]
[335477977,1724259043065,-153.0,0.00032932,2]
[335477978,1724259043075,-153.0,0.00032932,2]
[335477979,1724259043086,-153.0,0.00032932,2]
[335477980,1724259043097,-153.0,0.00032932,2]
[335477981,1724259043107,-153.0,0.00032932,2]
[335477983,1724259043117,-153.0,0.00032932,2]
[335477986,1724259043128,-153.0,0.00032932,2]
[335477988,1724259043138,-153.0,0.00032932,2]
[335477989,1724259043148,-153.0,0.00032932,2]
[335477990,1724259043158,-500.0,0.00032971,7]
[335477992,1724259043167,-362.4077997,0.00032982,2]
[335477994,1724259043180,-203.71151796,0.00032984,2]
[335477996,1724259043190,-5994.54339261,0.00032984,2]
[335477998,1724259043199,-5712.62,0.00032986,21]
[335478000,1724259043209,-5142.87603245,0.0003299,2]
[335478001,1724259043219,-151.0,0.0003299,7]
[335478003,1724259043229,-195.985204,0.0003299,7]
[335478005,1724259043239,-151.0,0.0003299,7]
[335478007,1724259043251,-647.964,0.0003299,7]
[335478008,1724259043261,-647.964,0.0003299,7]
[335478009,1724259043271,-6898.40065398,0.00033,23]
[335478011,1724259043281,-10000.0,0.00033,23]
[335478013,1724259043290,-300.0,0.00033,7]
[335478014,1724259043300,-1000.0,0.00033,33]
[335478016,1724259043310,-151.0,0.00033,7]
[335478018,1724259043319,-151.0,0.00033,7]
[335478020,1724259043329,-151.0,0.00033,7]
[335478022,1724259043340,-151.0,0.00033,7]
[335478023,1724259043349,-173.551772,0.00033,7]
[335478024,1724259043359,-151.0,0.00033,7]
[335478025,1724259043368,-187.172692,0.00033,7]
[335478026,1724259043378,-151.0,0.00033,7]
[335478027,1724259043389,-151.0,0.00033,7]
[335478029,1724259043410,-151.0,0.00033,7]
[335478031,1724259043420,-151.0,0.00033,7]
[335478032,1724259043430,-151.0,0.00033,7]
[335478033,1724259043440,-433.0,0.00033,2]
[335478035,1724259043451,-158.691,0.00033009,2]
[335478036,1724259043462,-151.0,0.00033009,7]
[335478038,1724259043472,-151.0,0.00033009,7]
[335478040,1724259043482,-190.57,0.0003304,2]
[335478041,1724259043491,-190.57,0.0003304,2]
[335478042,1724259043500,-190.57,0.0003304,2]
[335478044,1724259043509,-5712.62,0.00033041,21]
[335478045,1724259043519,-150.0,0.0003306,2]
[335478047,1724259043528,-160.0,0.00033089,10]
[335478048,1724259043537,-84432.116611,0.0003309,2]
[335478049,1724259043546,-151.0,0.0003309,7]
[335478050,1724259043555,-154.058903,0.0003309,7]
[335478051,1724259043566,-151.0,0.0003309,7]
[335478052,1724259043576,-151.0,0.0003309,7]
[335478053,1724259043588,-151.0,0.0003309,7]
[335478054,1724259043598,-227.46784,0.0003309,7]
[335478055,1724259043608,-151.0,0.0003309,7]
[335478056,1724259043619,-151.0,0.0003309,7]
[335478057,1724259043629,-151.0,0.0003309,7]
[335478058,1724259043639,-647.964,0.0003309,7]
[335478059,1724259043650,-647.964,0.0003309,7]
[335478060,1724259043659,-151.0,0.00033095,7]
[335478061,1724259043669,-151.0,0.00033095,7]
[335478062,1724259043678,-151.0,0.00033095,7]
[335478063,1724259043688,-151.0,0.00033095,7]
[335478064,1724259043698,-151.0,0.00033095,7]
[335478065,1724259043708,-251.519128,0.00033095,7]
[335478066,1724259043717,-5712.62,0.00033095,21]
[335478067,1724259043727,-6617.71510224,0.00033104,60]
[335478068,1724259043738,-151.0,0.0003315,7]
[335478069,1724259043748,-151.0,0.0003315,7]
[335478070,1724259043758,-151.0,0.0003315,7]
[335478071,1724259043768,-151.0,0.0003315,7]
[335478072,1724259043777,-5712.62,0.0003315,21]
[335478073,1724259043788,-151.0,0.0003315,7]
[335478074,1724259043798,-151.0,0.0003315,7]
[335478075,1724259043807,-433.0,0.00033151,2]
[335478076,1724259043817,-155.82579699,0.00033184,3]
[335478077,1724259043826,-5712.62,0.00033205,21]
[335478078,1724259043836,-1300.0,0.00033228,7]
[335478080,1724259043846,-1500.0,0.0003323,7]
[335478082,1724259043857,-155.0,0.0003325,29]
[335478083,1724259043867,-5712.62,0.0003326,21]
[335478084,1724259043877,-1300.0,0.00033271,7]
[335478085,1724259043887,-500.0,0.00033302,7]
[335478086,1724259043897,-5712.62,0.00033315,21]
[335478087,1724259043907,-180.055543,0.00033341,2]
[335478088,1724259043916,-181.741714,0.00033341,2]
[335478089,1724259043926,-5712.62,0.00033369,21]
[335478090,1724259043936,-160.0,0.00033379,10]
[335478091,1724259043946,-151.0,0.0003338,7]
[335478092,1724259043955,-151.0,0.0003338,7]
[335478093,1724259043965,-151.0,0.0003338,7]
[335478094,1724259043974,-151.0,0.0003338,7]
[335478095,1724259043984,-151.0,0.0003338,7]
[335478096,1724259043994,-151.0,0.0003338,7]
[335478097,1724259044003,-150.0,0.00033411,2]
[335478098,1724259044013,-521.0,0.00033411,2]
[335478099,1724259044023,-1415.0,0.00033411,2]
[335478100,1724259044032,-7727.0,0.00033411,2]
[335478101,1724259044041,-239.615,0.00033411,2]
[335478102,1724259044051,-150.0,0.00033411,2]
[335478103,1724259044060,-5712.62,0.00033424,21]
[335478104,1724259044070,-5712.62,0.00033479,21]
[335478105,1724259044080,-31649.16085298,0.0003348,7]
[335478106,1724259044089,-2000.0,0.000335,30]
[335478107,1724259044099,-151.0,0.000335,7]
[335478108,1724259044108,-151.0,0.000335,7]
[335478109,1724259044118,-647.964,0.000335,7]
[335478110,1724259044128,-647.964,0.000335,7]
[335478111,1724259044137,-211.39,0.000335,31]
[335478112,1724259044148,-211.39,0.000335,31]
[335478113,1724259044163,-211.39,0.000335,31]
[335478114,1724259044175,-211.39,0.000335,31]
[335478115,1724259044186,-211.39,0.000335,31]
[335478116,1724259044195,-211.39,0.000335,31]
[335478117,1724259044205,-211.39,0.000335,31]
[335478118,1724259044216,-211.39,0.000335,31]
[335478119,1724259044226,-211.39,0.000335,31]
[335478120,1724259044236,-211.39,0.000335,31]
[335478121,1724259044246,-211.39,0.000335,31]
[335478122,1724259044256,-211.39,0.000335,31]
[335478123,1724259044266,-5712.62,0.00033534,21]
[335478124,1724259044276,-153.0,0.00033562,2]
[335478125,1724259044285,-153.0,0.00033562,2]
[335478126,1724259044294,-153.0,0.00033562,2]
[335478127,1724259044304,-153.0,0.00033562,2]
[335478129,1724259044315,-151.0,0.00033589,7]
[335478130,1724259044325,-151.0,0.00033589,7]
[335478132,1724259044334,-151.0,0.00033589,7]
[335478134,1724259044344,-151.0,0.00033589,7]
[335478136,1724259044357,-151.0,0.00033589,7]
[335478138,1724259044366,-5712.62,0.00033589,21]
[335478139,1724259044378,-600.0,0.00033599,2]
[335478140,1724259044389,-163.397038,0.00033626,2]
[335478141,1724259044404,-1000.0,0.0003364,21]
[335478142,1724259044413,-634.50320716,0.0003364,21]
[335478143,1724259044423,-5712.62,0.00033643,21]
[335478144,1724259044433,-573.14098692,0.00033661,7]
[335478145,1724259044443,-500.0,0.00033686,7]
[335478146,1724259044453,-151.0,0.00033686,7]
[335478147,1724259044463,-207.038008,0.00033686,7]
[335478148,1724259044473,-1300.0,0.00033692,7]
[335478149,1724259044483,-5712.62,0.00033698,21]
[335478150,1724259044493,-409.0504316,0.00033699,2]
[335478151,1724259044504,-867.6486429,0.00033699,2]
[335478152,1724259044515,-153.0,0.00033699,2]
[335478153,1724259044526,-207.6241733,0.00033699,2]
[335478154,1724259044538,-207.6241733,0.00033699,2]
[335478155,1724259044549,-153.0,0.00033699,2]
[335478156,1724259044560,-207.6241733,0.00033699,2]
[335478157,1724259044570,-153.0,0.00033699,2]
[335478158,1724259044580,-153.0,0.00033699,2]
[335478159,1724259044591,-207.6241733,0.00033699,2]
[335478160,1724259044602,-207.6241733,0.00033699,2]
[335478161,1724259044612,-5712.62,0.00033753,21]
[335478162,1724259044622,-600.0,0.00033776,18]
[335478163,1724259044633,-1900.0,0.00033781,7]
[335478164,1724259044643,-211.39,0.000338,31]
[335478165,1724259044655,-211.39,0.000338,31]
[335478166,1724259044666,-211.39,0.000338,31]
[335478167,1724259044676,-211.39,0.000338,31]
[335478168,1724259044687,-211.39,0.000338,31]
[335478169,1724259044699,-211.39,0.000338,31]
[335478170,1724259044710,-211.39,0.000338,31]
[335478171,1724259044721,-211.39,0.000338,31]
[335478172,1724259044731,-211.39,0.000338,31]
[335478173,1724259044742,-211.39,0.000338,31]
[335478174,1724259044752,-211.39,0.000338,31]
[335478175,1724259044770,-211.39,0.000338,31]
[335478176,1724259044780,-211.39,0.000338,31]
[335478177,1724259044790,-211.39,0.000338,31]
[335478178,1724259044800,-211.39,0.000338,31]
[335478179,1724259044810,-211.39,0.000338,31]
[335478180,1724259044820,-211.39,0.000338,31]
[335478181,1724259044830,-211.39,0.000338,31]
[335478182,1724259044840,-211.39,0.000338,31]
[335478183,1724259044849,-211.39,0.000338,31]
[335478184,1724259044859,-211.39,0.000338,31]
[335478185,1724259044870,-211.39,0.000338,31]
[335478186,1724259044880,-211.39,0.000338,31]
[335478187,1724259044890,-211.39,0.000338,31]
[335478188,1724259044901,-151.0,0.00033808,7]
[335478189,1724259044913,-232.26503,0.00033808,7]
[335478190,1724259044925,-5712.62,0.00033808,21]
[335478191,1724259044935,-151.0,0.00033863,7]
[335478192,1724259044946,-246.515176,0.00033863,7]
[335478193,1724259044956,-151.0,0.00033863,7]
[335478194,1724259044966,-151.0,0.00033863,7]
[335478195,1724259044976,-5712.62,0.00033863,21]
[335478196,1724259044986,-180.055543,0.00033879,2]
[335478197,1724259044996,-181.741714,0.00033879,2]
[335478198,1724259045006,-3000.0,0.000339,17]
[335478199,1724259045016,-3000.0,0.0003391,17]
[335478200,1724259045026,-307.1663741,0.00033912,2]
[335478201,1724259045036,-5712.62,0.00033917,21]
[335478202,1724259045046,-3000.0,0.0003392,17]
[335478203,1724259045056,-402.0,0.00033925,4]
[335478204,1724259045066,-151.0,0.00033925,4]
[335478205,1724259045076,-3000.0,0.0003393,17]
[335478206,1724259045086,-3000.0,0.0003394,17]
[335478207,1724259045096,-600.0,0.00033949,2]
[335478208,1724259045106,-3000.0,0.0003395,18]
[335478209,1724259045116,-3000.0,0.0003396,18]
[335478210,1724259045126,-3000.0,0.0003397,18]
[335478211,1724259045136,-160.0,0.00033971,10]
[335478212,1724259045153,-151.0,0.00033972,7]
[335478213,1724259045163,-151.0,0.00033972,7]
[335478214,1724259045176,-647.964,0.00033972,7]
[335478215,1724259045187,-647.964,0.00033972,7]
[335478216,1724259045196,-151.0,0.00033972,7]
[335478217,1724259045206,-249.325512,0.00033972,7]
[335478218,1724259045216,-151.0,0.00033972,7]
[335478219,1724259045226,-151.0,0.00033972,7]
[335478220,1724259045235,-151.0,0.00033972,7]
[335478221,1724259045245,-5712.62,0.00033972,21]
[335478222,1724259045255,-151.0,0.00033972,7]
[335478223,1724259045264,-1665.67,0.00033972,21]
[335478224,1724259045273,-1665.67,0.00033972,21]
[335478225,1724259045283,-1665.67,0.00033972,21]
[335478226,1724259045292,-1665.67,0.00033972,21]
[335478227,1724259045302,-1665.67,0.00033972,21]
[335478228,1724259045311,-1665.67,0.00033972,21]
[335478229,1724259045320,-1665.67,0.00033972,21]
[335478230,1724259045330,-1665.67,0.00033972,21]
[335478231,1724259045340,-3000.0,0.0003398,18]
[335478232,1724259045350,-3000.0,0.0003399,18]
[335478233,1724259045359,-160.0,0.00033999,10]
[335478234,1724259045369,-10000.0,0.00034,24]
[335478235,1724259045378,-10000.0,0.00034,24]
[335478236,1724259045400,-83470.16831301,0.00034,26]
[335478237,1724259045411,-300.0,0.00034,9]
[335478238,1724259045422,-545.29305246,0.00034,2]
[335478239,1724259045433,-16149.23402125,0.00034,30]
[335478240,1724259045444,-1000.0,0.00034,34]
[335478241,1724259045456,-1318.0,0.00034,10]
[335478242,1724259045467,-250.0,0.00034,120]
[335478243,1724259045478,-235.806067,0.00034,7]
[335478244,1724259045488,-3000.0,0.00034,18]
[335478245,1724259045497,-151.0,0.00034,7]
[335478246,1724259045507,-723.02,0.00034,14]
[335478247,1724259045516,-151.0,0.00034,7]
[335478248,1724259045526,-151.0,0.00034,7]
[335478249,1724259045536,-151.0,0.00034,7]
[335478250,1724259045547,-647.964,0.00034,7]
[335478251,1724259045557,-647.964,0.00034,7]
[335478252,1724259045567,-151.0,0.00034,7]
[335478253,1724259045578,-151.0,0.00034,7]
[335478254,1724259045590,-258.93668,0.00034,7]
[335478255,1724259045602,-151.0,0.00034,7]
[335478256,1724259045612,-3000.0,0.0003401,18]
[335478257,1724259045622,-3000.0,0.0003402,18]
[335478258,1724259045634,-5712.62,0.00034027,21]
[335478259,1724259045645,-3000.0,0.0003403,18]
[335478260,1724259045657,-3000.0,0.0003404,18]